[Event "Titled Tuesday Blitz March 08 Early 2022"]
[White "Lewtak, Damian"]
[Black "Krysa, Leandro"]
[WhiteFideId "1141724"]
[BlackFideId "116807"]
[WhiteElo "2362"]
[BlackElo "2490"]
[Result "0-1"]
[Round "04"]
[TimeControl "180+1"]
[Date "2022.03.09"]
[WhiteClock "0:00:22"]
[BlackClock "0:00:43"]

1. a3 {[%clk 0:03:00]}  d5 {[%clk 0:02:54]} 2. d4 {[%clk 0:03:00]}  Nf6 {[%clk 0:02:52]} 3. Nf3 {[%clk 0:03:00]}  Nbd7 {[%clk 0:02:46]} 4. Bf4 {[%clk 0:02:50]}  c5 {[%clk 0:02:41]} 5. c3 {[%clk 0:02:49]}  Nh5 {[%clk 0:02:40]} 6. Be3 {[%clk 0:02:46]}  Qb6 {[%clk 0:02:33]} 7. Qc1 {[%clk 0:02:44]}  e6 {[%clk 0:02:30]} 8. g3 {[%clk 0:02:42]}  Bd6 {[%clk 0:02:22]} 9. Bg2 {[%clk 0:02:41]}  O-O {[%clk 0:02:22]} 10. b4 {[%clk 0:02:40]}  c4 {[%clk 0:02:20]} 11. a4 {[%clk 0:02:33]}  f5 {[%clk 0:02:20]} 12. Ne5 {[%clk 0:02:26]}  Qd8 {[%clk 0:02:10]} 13. f4 {[%clk 0:02:26]}  Nhf6 {[%clk 0:02:04]} 14. Nd2 {[%clk 0:02:23]}  Ne4 {[%clk 0:02:04]} 15. Nxe4 {[%clk 0:02:20]}  fxe4 {[%clk 0:02:02]} 16. Nxd7 {[%clk 0:02:08]}  Bxd7 {[%clk 0:02:01]} 17. O-O {[%clk 0:02:05]}  Be8 {[%clk 0:02:00]} 18. Bh3 {[%clk 0:02:01]}  Qe7 {[%clk 0:01:54]} 19. f5 {[%clk 0:01:57]}  exf5 {[%clk 0:01:51]} 20. Bxf5 {[%clk 0:01:51]}  Bd7 {[%clk 0:01:49]} 21. Bxd7 {[%clk 0:01:37]}  Qxd7 {[%clk 0:01:49]} 22. Qc2 {[%clk 0:01:33]}  Qh3 {[%clk 0:01:45]} 23. Qd2 {[%clk 0:01:25]}  Bxg3 {[%clk 0:01:05]} 24. hxg3 {[%clk 0:01:22]}  Qxg3+ {[%clk 0:01:06]} 25. Kh1 {[%clk 0:01:23]}  Qh3+ {[%clk 0:01:06]} 26. Kg1 {[%clk 0:01:23]}  Rf6 {[%clk 0:01:05]} 27. Rxf6 {[%clk 0:01:16]}  gxf6 {[%clk 0:01:05]} 28. Kf2 {[%clk 0:00:45]}  Qh4+ {[%clk 0:01:01]} 29. Kf1 {[%clk 0:00:38]}  Kf7 {[%clk 0:00:52]} 30. Qe1 {[%clk 0:00:25]}  Qh3+ {[%clk 0:00:50]} 31. Kf2 {[%clk 0:00:25]}  Qh2+ {[%clk 0:00:45]} 32. Kf1 {[%clk 0:00:22]}  Rg8 {[%clk 0:00:43]} 0-1


[Site "https://www.chess.com"]

[Event "Titled Tuesday Blitz March 08 Early 2022"]
[White "Lou, Yiping"]
[Black "Coto Mederos, Michel"]
[WhiteFideId "8603928"]
[BlackFideId "3508528"]
[WhiteElo "2412"]
[BlackElo "2427"]
[Result "1-0"]
[Round "04"]
[TimeControl "180+1"]
[Date "2022.03.09"]
[WhiteClock "0:01:55"]
[BlackClock "0:00:12"]

1. e4 {[%clk 0:03:00]}  e5 {[%clk 0:02:57]} 2. Nf3 {[%clk 0:03:00]}  Nc6 {[%clk 0:02:51]} 3. Bb5 {[%clk 0:02:59]}  a6 {[%clk 0:02:51]} 4. Ba4 {[%clk 0:02:58]}  Nf6 {[%clk 0:02:50]} 5. O-O {[%clk 0:02:57]}  b5 {[%clk 0:02:50]} 6. Bb3 {[%clk 0:02:57]}  Bc5 {[%clk 0:02:50]} 7. c3 {[%clk 0:02:56]}  d6 {[%clk 0:02:51]} 8. d4 {[%clk 0:02:54]}  Bb6 {[%clk 0:02:50]} 9. a4 {[%clk 0:02:54]}  Rb8 {[%clk 0:02:48]} 10. a5 {[%clk 0:02:48]}  Ba7 {[%clk 0:02:46]} 11. h3 {[%clk 0:02:44]}  h6 {[%clk 0:02:39]} 12. Be3 {[%clk 0:02:41]}  exd4 {[%clk 0:02:36]} 13. cxd4 {[%clk 0:02:39]}  O-O {[%clk 0:02:33]} 14. Nc3 {[%clk 0:02:38]}  Nb4 {[%clk 0:02:18]} 15. e5 {[%clk 0:02:35]}  Nh7 {[%clk 0:02:04]} 16. Qd2 {[%clk 0:02:22]}  Bb7 {[%clk 0:01:47]} 17. e6 {[%clk 0:02:17]}  fxe6 {[%clk 0:00:59]} 18. Bxe6+ {[%clk 0:02:18]}  Kh8 {[%clk 0:01:00]} 19. d5 {[%clk 0:02:19]}  Bxe3 {[%clk 0:00:59]} 20. fxe3 {[%clk 0:02:13]}  Ng5 {[%clk 0:00:49]} 21. Nxg5 {[%clk 0:02:10]}  Qxg5 {[%clk 0:00:50]} 22. Ne4 {[%clk 0:02:10]}  Qh4 {[%clk 0:00:12]} 23. Qxb4 {[%clk 0:02:08]}  c5 {[%clk 0:00:11]} 24. dxc6 {[%clk 0:02:01]}  Bxc6 {[%clk 0:00:11]} 25. Rxf8+ {[%clk 0:01:55]}  Rxf8 {[%clk 0:00:12]} 26. Qxd6 {[%clk 0:01:55]} 1-0


[Site "https://www.chess.com"]

[Event "Titled Tuesday Blitz March 08 Early 2022"]
[White "Manukian, Artak"]
[Black "Zanette, Edgard Vinicius"]
[WhiteFideId "13301373"]
[BlackFideId "2109263"]
[WhiteElo "2511"]
[BlackElo "2182"]
[Result "0-1"]
[Round "04"]
[TimeControl "180+1"]
[Date "2022.03.09"]
[WhiteClock "0:00:01"]
[BlackClock "0:00:20"]

1. e4 {[%clk 0:03:00]}  e5 {[%clk 0:02:59]} 2. Nf3 {[%clk 0:03:00]}  Nc6 {[%clk 0:02:59]} 3. d4 {[%clk 0:03:01]}  exd4 {[%clk 0:02:59]} 4. Nxd4 {[%clk 0:03:02]}  Bc5 {[%clk 0:02:59]} 5. Nxc6 {[%clk 0:03:02]}  Qf6 {[%clk 0:02:58]} 6. Qf3 {[%clk 0:03:02]}  dxc6 {[%clk 0:02:57]} 7. Bc4 {[%clk 0:03:01]}  Qxf3 {[%clk 0:02:47]} 8. gxf3 {[%clk 0:03:01]}  Ne7 {[%clk 0:02:40]} 9. h4 {[%clk 0:02:58]}  Ng6 {[%clk 0:02:38]} 10. h5 {[%clk 0:02:57]}  Ne5 {[%clk 0:02:38]} 11. Be2 {[%clk 0:02:57]}  h6 {[%clk 0:02:34]} 12. Rg1 {[%clk 0:02:45]}  Kf8 {[%clk 0:02:15]} 13. f4 {[%clk 0:02:42]}  Nd7 {[%clk 0:02:14]} 14. e5 {[%clk 0:02:36]}  Nb6 {[%clk 0:02:11]} 15. Nd2 {[%clk 0:02:32]}  Bf5 {[%clk 0:02:08]} 16. Nb3 {[%clk 0:02:24]}  Be7 {[%clk 0:02:02]} 17. Na5 {[%clk 0:01:42]}  Rb8 {[%clk 0:01:53]} 18. c3 {[%clk 0:01:32]}  Nd5 {[%clk 0:01:44]} 19. Be3 {[%clk 0:01:25]}  Nxe3 {[%clk 0:01:35]} 20. fxe3 {[%clk 0:01:26]}  Bh4+ {[%clk 0:01:31]} 21. Kf1 {[%clk 0:00:40]}  Bh3+ {[%clk 0:01:28]} 22. Rg2 {[%clk 0:00:40]}  g5 {[%clk 0:00:59]} 23. hxg6 {[%clk 0:00:28]}  Rg8 {[%clk 0:00:58]} 24. Bh5 {[%clk 0:00:17]}  fxg6 {[%clk 0:00:55]} 25. Bf3 {[%clk 0:00:16]}  g5 {[%clk 0:00:51]} 26. f5 {[%clk 0:00:14]}  g4 {[%clk 0:00:51]} 27. Be4 {[%clk 0:00:14]}  Bg5 {[%clk 0:00:45]} 28. Ke2 {[%clk 0:00:14]}  Bxg2 {[%clk 0:00:45]} 29. Bxg2 {[%clk 0:00:15]}  h5 {[%clk 0:00:42]} 30. f6 {[%clk 0:00:14]}  h4 {[%clk 0:00:38]} 31. Rd1 {[%clk 0:00:12]}  h3 {[%clk 0:00:37]} 32. Be4 {[%clk 0:00:11]}  g3 {[%clk 0:00:35]} 33. Kf3 {[%clk 0:00:08]}  g2 {[%clk 0:00:33]} 34. Rg1 {[%clk 0:00:06]}  h2 {[%clk 0:00:30]} 35. Kxg2 {[%clk 0:00:04]}  hxg1=Q+ {[%clk 0:00:27]} 36. Kxg1 {[%clk 0:00:05]}  Bxf6+ {[%clk 0:00:27]} 37. Kf1 {[%clk 0:00:06]}  Bxe5 {[%clk 0:00:27]} 38. Ke2 {[%clk 0:00:06]}  Rg4 {[%clk 0:00:24]} 39. Kf3 {[%clk 0:00:05]}  Rxe4 {[%clk 0:00:23]} 40. Kxe4 {[%clk 0:00:04]}  Bg7 {[%clk 0:00:23]} 41. Kf5 {[%clk 0:00:03]}  Ke7 {[%clk 0:00:24]} 42. e4 {[%clk 0:00:03]}  Kd7 {[%clk 0:00:23]} 43. e5 {[%clk 0:00:04]}  Re8 {[%clk 0:00:23]} 44. Nxb7 {[%clk 0:00:03]}  Rxe5+ {[%clk 0:00:22]} 45. Kg6 {[%clk 0:00:03]}  Bf8 {[%clk 0:00:22]} 46. b4 {[%clk 0:00:02]}  Rb5 {[%clk 0:00:21]} 47. Kf7 {[%clk 0:00:01]}  Rxb7 {[%clk 0:00:20]} 0-1


[Site "https://www.chess.com"]

[Event "Titled Tuesday Blitz March 08 Early 2022"]
[White "Martin Duque, Jesus"]
[Black "Vakhlamov, Igor L."]
[WhiteFideId "2208954"]
[BlackFideId "24126748"]
[WhiteElo "2243"]
[BlackElo "2401"]
[Result "0-1"]
[Round "04"]
[TimeControl "180+1"]
[Date "2022.03.09"]
[WhiteClock "0:01:15"]
[BlackClock "0:00:28"]

1. Nf3 {[%clk 0:02:59]}  Nf6 {[%clk 0:02:59]} 2. b3 {[%clk 0:02:59]}  d6 {[%clk 0:02:59]} 3. d4 {[%clk 0:02:59]}  Bf5 {[%clk 0:02:59]} 4. Bb2 {[%clk 0:02:59]}  Nc6 {[%clk 0:02:59]} 5. e3 {[%clk 0:02:50]}  e5 {[%clk 0:02:59]} 6. Bb5 {[%clk 0:02:49]}  exd4 {[%clk 0:02:54]} 7. Nxd4 {[%clk 0:02:49]}  Bd7 {[%clk 0:02:54]} 8. O-O {[%clk 0:02:49]}  Be7 {[%clk 0:02:54]} 9. Nc3 {[%clk 0:02:48]}  O-O {[%clk 0:02:52]} 10. Bxc6 {[%clk 0:02:48]}  bxc6 {[%clk 0:02:49]} 11. e4 {[%clk 0:02:48]}  c5 {[%clk 0:02:49]} 12. Nde2 {[%clk 0:02:45]}  Re8 {[%clk 0:02:46]} 13. Ng3 {[%clk 0:02:43]}  Bf8 {[%clk 0:02:39]} 14. Qd3 {[%clk 0:02:42]}  Ng4 {[%clk 0:02:39]} 15. f4 {[%clk 0:02:37]}  Bc6 {[%clk 0:02:33]} 16. h3 {[%clk 0:02:36]}  Nf6 {[%clk 0:02:32]} 17. Rae1 {[%clk 0:02:36]}  a5 {[%clk 0:02:30]} 18. a4 {[%clk 0:02:34]}  Nd7 {[%clk 0:02:28]} 19. Nd5 {[%clk 0:02:33]}  Nb6 {[%clk 0:02:17]} 20. Nh5 {[%clk 0:02:24]}  Bxd5 {[%clk 0:02:08]} 21. exd5 {[%clk 0:02:20]}  Qh4 {[%clk 0:02:07]} 22. Ng3 {[%clk 0:02:11]}  Rxe1 {[%clk 0:00:54]} 23. Rxe1 {[%clk 0:02:11]}  Qxf4 {[%clk 0:00:54]} 24. c4 {[%clk 0:02:11]}  Nd7 {[%clk 0:00:51]} 25. Rf1 {[%clk 0:02:10]}  Qg5 {[%clk 0:00:49]} 26. Rf5 {[%clk 0:02:10]}  Qg6 {[%clk 0:00:48]} 27. h4 {[%clk 0:02:02]}  Re8 {[%clk 0:00:48]} 28. h5 {[%clk 0:02:01]}  Qg4 {[%clk 0:00:48]} 29. Kf2 {[%clk 0:01:58]}  g6 {[%clk 0:00:41]} 30. Rf3 {[%clk 0:01:46]}  Ne5 {[%clk 0:00:40]} 31. Bxe5 {[%clk 0:01:46]}  Rxe5 {[%clk 0:00:41]} 32. Qc3 {[%clk 0:01:35]}  Bh6 {[%clk 0:00:37]} 33. hxg6 {[%clk 0:01:29]}  hxg6 {[%clk 0:00:35]} 34. Nf1 {[%clk 0:01:28]}  Bg5 {[%clk 0:00:34]} 35. Qb2 {[%clk 0:01:18]}  Qe4 {[%clk 0:00:30]} 36. Ng3 {[%clk 0:01:15]}  Qe1# {[%clk 0:00:28]} 0-1


[Site "https://www.chess.com"]

[Event "Titled Tuesday Blitz March 08 Early 2022"]
[White "Maung, Maung Kyaw Zaw Hein"]
[Black "Kamara, Ansumana"]
[WhiteFideId "13001698"]
[BlackFideId "1622218"]
[WhiteElo "1785"]
[BlackElo "1935"]
[Result "1-0"]
[Round "04"]
[TimeControl "180+1"]
[Date "2022.03.09"]
[WhiteClock "0:02:16"]
[BlackClock "0:01:45"]

1. Nf3 {[%clk 0:02:59]}  Nf6 {[%clk 0:02:58]} 2. c4 {[%clk 0:02:59]}  g6 {[%clk 0:02:59]} 3. Nc3 {[%clk 0:02:59]}  Bg7 {[%clk 0:02:59]} 4. e4 {[%clk 0:02:59]}  d6 {[%clk 0:02:59]} 5. d4 {[%clk 0:03:00]}  O-O {[%clk 0:03:00]} 6. Be2 {[%clk 0:03:01]}  Nc6 {[%clk 0:02:59]} 7. O-O {[%clk 0:03:01]}  e5 {[%clk 0:02:59]} 8. d5 {[%clk 0:03:01]}  Ne7 {[%clk 0:03:00]} 9. b4 {[%clk 0:03:02]}  Nd7 {[%clk 0:03:00]} 10. a4 {[%clk 0:02:58]}  f5 {[%clk 0:03:00]} 11. Nd2 {[%clk 0:02:58]}  f4 {[%clk 0:02:59]} 12. Ba3 {[%clk 0:02:58]}  g5 {[%clk 0:02:59]} 13. c5 {[%clk 0:02:58]}  dxc5 {[%clk 0:02:57]} 14. bxc5 {[%clk 0:02:58]}  Rf7 {[%clk 0:02:55]} 15. d6 {[%clk 0:02:56]}  cxd6 {[%clk 0:02:51]} 16. cxd6 {[%clk 0:02:55]}  Ng6 {[%clk 0:02:51]} 17. Bc4 {[%clk 0:02:55]}  Nf6 {[%clk 0:02:48]} 18. Qb3 {[%clk 0:02:50]}  Qd7 {[%clk 0:02:40]} 19. Nb5 {[%clk 0:02:35]}  a6 {[%clk 0:02:36]} 20. Nc7 {[%clk 0:02:34]}  Rb8 {[%clk 0:02:35]} 21. Be6 {[%clk 0:02:30]}  Qxd6 {[%clk 0:02:17]} 22. Bxf7+ {[%clk 0:02:26]}  Kh8 {[%clk 0:02:14]} 23. Bxd6 {[%clk 0:02:26]}  Bd7 {[%clk 0:02:01]} 24. Bxg6 {[%clk 0:02:21]}  hxg6 {[%clk 0:02:00]} 25. Nd5 {[%clk 0:02:20]}  Rd8 {[%clk 0:01:49]} 26. Be7 {[%clk 0:02:19]}  Nxd5 {[%clk 0:01:45]} 27. Qxd5 {[%clk 0:02:16]} 1-0


[Site "https://www.chess.com"]

[Event "Titled Tuesday Blitz March 08 Early 2022"]
[White "Michelle Catherina, P"]
[Black "Rodchenkov, Sergey D."]
[WhiteFideId "5005736"]
[BlackFideId "4168712"]
[WhiteElo "2049"]
[BlackElo "2306"]
[Result "0-1"]
[Round "04"]
[TimeControl "180+1"]
[Date "2022.03.09"]
[WhiteClock "0:00:03"]
[BlackClock "0:00:18"]

1. d4 {[%clk 0:03:00]}  Nf6 {[%clk 0:02:59]} 2. Nc3 {[%clk 0:03:00]}  d5 {[%clk 0:02:59]} 3. Bf4 {[%clk 0:03:00]}  c5 {[%clk 0:02:55]} 4. e3 {[%clk 0:02:59]}  cxd4 {[%clk 0:02:54]} 5. exd4 {[%clk 0:02:59]}  Bg4 {[%clk 0:02:54]} 6. Nf3 {[%clk 0:02:25]}  Nc6 {[%clk 0:02:50]} 7. Nb5 {[%clk 0:02:03]}  Rc8 {[%clk 0:02:46]} 8. Be2 {[%clk 0:01:55]}  a6 {[%clk 0:02:40]} 9. Nc3 {[%clk 0:01:55]}  e6 {[%clk 0:02:25]} 10. O-O {[%clk 0:01:51]}  Bd6 {[%clk 0:02:19]} 11. Qd2 {[%clk 0:01:31]}  Qc7 {[%clk 0:02:02]} 12. Bxd6 {[%clk 0:01:18]}  Qxd6 {[%clk 0:02:03]} 13. a3 {[%clk 0:01:05]}  Bxf3 {[%clk 0:01:58]} 14. Bxf3 {[%clk 0:01:05]}  O-O {[%clk 0:01:58]} 15. Rfe1 {[%clk 0:01:03]}  h6 {[%clk 0:01:46]} 16. Na4 {[%clk 0:00:56]}  b5 {[%clk 0:01:37]} 17. Nc3 {[%clk 0:00:47]}  Qc7 {[%clk 0:01:36]} 18. Re3 {[%clk 0:00:31]}  Na5 {[%clk 0:01:35]} 19. b3 {[%clk 0:00:29]}  Nb7 {[%clk 0:01:24]} 20. Rae1 {[%clk 0:00:27]}  Nd6 {[%clk 0:01:24]} 21. h4 {[%clk 0:00:22]}  Nf5 {[%clk 0:01:23]} 22. Rd3 {[%clk 0:00:19]}  Nxh4 {[%clk 0:01:20]} 23. Bd1 {[%clk 0:00:15]}  Nf5 {[%clk 0:01:19]} 24. Rh3 {[%clk 0:00:13]}  Rfd8 {[%clk 0:01:03]} 25. g4 {[%clk 0:00:13]}  Ne7 {[%clk 0:00:22]} 26. g5 {[%clk 0:00:11]}  hxg5 {[%clk 0:00:23]} 27. Qxg5 {[%clk 0:00:11]}  Ng6 {[%clk 0:00:23]} 28. Bh5 {[%clk 0:00:10]}  Qf4 {[%clk 0:00:18]} 29. Qg2 {[%clk 0:00:03]}  Nxh5 {[%clk 0:00:18]} 30. Rxh5 {[%clk 0:00:03]}  Rxc3 {[%clk 0:00:18]} 0-1


[Site "https://www.chess.com"]

[Event "Titled Tuesday Blitz March 08 Early 2022"]
[White "Mirzanurov, Bulat"]
[Black "Rangel, Daniel"]
[WhiteFideId "4184521"]
[BlackFideId "2124475"]
[WhiteElo "2116"]
[BlackElo "2225"]
[Result "1-0"]
[Round "04"]
[TimeControl "180+1"]
[Date "2022.03.09"]
[WhiteClock "0:00:18"]
[BlackClock "0:00:09"]

1. e4 {[%clk 0:03:00]}  c6 {[%clk 0:02:57]} 2. d4 {[%clk 0:03:00]}  d5 {[%clk 0:02:58]} 3. exd5 {[%clk 0:02:59]}  cxd5 {[%clk 0:02:59]} 4. Bd3 {[%clk 0:02:59]}  Nf6 {[%clk 0:03:00]} 5. h3 {[%clk 0:02:58]}  g6 {[%clk 0:03:01]} 6. c3 {[%clk 0:02:57]}  Bg7 {[%clk 0:03:02]} 7. Qc2 {[%clk 0:02:56]}  O-O {[%clk 0:03:02]} 8. Nf3 {[%clk 0:02:56]}  Nc6 {[%clk 0:03:03]} 9. O-O {[%clk 0:02:56]}  Qd6 {[%clk 0:03:02]} 10. Nbd2 {[%clk 0:02:53]}  e5 {[%clk 0:03:01]} 11. dxe5 {[%clk 0:02:52]}  Nxe5 {[%clk 0:03:02]} 12. Nxe5 {[%clk 0:02:52]}  Qxe5 {[%clk 0:03:03]} 13. Nf3 {[%clk 0:02:52]}  Qh5 {[%clk 0:03:02]} 14. Qd1 {[%clk 0:02:37]}  Ne4 {[%clk 0:02:27]} 15. Nd4 {[%clk 0:02:31]}  Qh4 {[%clk 0:01:57]} 16. Nf3 {[%clk 0:02:27]}  Qh5 {[%clk 0:01:50]} 17. Nd4 {[%clk 0:02:25]}  Qe5 {[%clk 0:01:39]} 18. Nf3 {[%clk 0:02:17]}  Qe7 {[%clk 0:01:36]} 19. Bf4 {[%clk 0:02:08]}  Bf5 {[%clk 0:01:34]} 20. Nd4 {[%clk 0:02:06]}  Bd7 {[%clk 0:01:33]} 21. Re1 {[%clk 0:02:00]}  Qc5 {[%clk 0:01:27]} 22. Be3 {[%clk 0:01:55]}  Qa5 {[%clk 0:01:23]} 23. Nb3 {[%clk 0:01:53]}  Qc7 {[%clk 0:01:21]} 24. Bd4 {[%clk 0:01:48]}  Bh6 {[%clk 0:01:17]} 25. Be3 {[%clk 0:01:45]}  Bg7 {[%clk 0:01:10]} 26. Bd4 {[%clk 0:01:44]}  Bh6 {[%clk 0:01:09]} 27. Be3 {[%clk 0:01:43]}  Bf4 {[%clk 0:01:08]} 28. Bxf4 {[%clk 0:01:30]}  Qxf4 {[%clk 0:01:09]} 29. Bxe4 {[%clk 0:01:30]}  dxe4 {[%clk 0:01:06]} 30. Qxd7 {[%clk 0:01:28]}  Rad8 {[%clk 0:01:06]} 31. Qb5 {[%clk 0:01:21]}  Rd3 {[%clk 0:01:00]} 32. Nc5 {[%clk 0:01:09]}  Rd2 {[%clk 0:00:55]} 33. Nxe4 {[%clk 0:01:06]}  Rc2 {[%clk 0:00:55]} 34. Qb3 {[%clk 0:00:59]}  Rd2 {[%clk 0:00:42]} 35. Nxd2 {[%clk 0:00:57]}  Qxd2 {[%clk 0:00:42]} 36. Rad1 {[%clk 0:00:55]}  Qg5 {[%clk 0:00:42]} 37. Qxb7 {[%clk 0:00:53]}  a5 {[%clk 0:00:41]} 38. Qd5 {[%clk 0:00:49]}  Qf4 {[%clk 0:00:37]} 39. Qe4 {[%clk 0:00:45]}  Qb8 {[%clk 0:00:36]} 40. b4 {[%clk 0:00:42]}  a4 {[%clk 0:00:36]} 41. Rb1 {[%clk 0:00:37]}  Qc7 {[%clk 0:00:34]} 42. b5 {[%clk 0:00:36]}  Qxc3 {[%clk 0:00:31]} 43. b6 {[%clk 0:00:35]}  Rb8 {[%clk 0:00:29]} 44. b7 {[%clk 0:00:33]}  h5 {[%clk 0:00:22]} 45. Qe8+ {[%clk 0:00:30]}  Rxe8 {[%clk 0:00:20]} 46. Rxe8+ {[%clk 0:00:30]}  Kh7 {[%clk 0:00:21]} 47. b8=Q {[%clk 0:00:29]}  Qc2 {[%clk 0:00:20]} 48. Rbe1 {[%clk 0:00:28]}  Qxa2 {[%clk 0:00:19]} 49. Rh8+ {[%clk 0:00:25]}  Kg7 {[%clk 0:00:19]} 50. Qe5+ {[%clk 0:00:25]}  f6 {[%clk 0:00:17]} 51. Qe8 {[%clk 0:00:23]}  g5 {[%clk 0:00:09]} 52. Re7+ {[%clk 0:00:18]} 1-0


[Site "https://www.chess.com"]

[Event "Titled Tuesday Blitz March 08 Early 2022"]
[White "Msellek, Ilyass"]
[Black "Carre, Sylvain"]
[WhiteFideId "675938"]
[BlackFideId "642118"]
[WhiteElo "2219"]
[BlackElo "2105"]
[Result "0-1"]
[Round "04"]
[TimeControl "180+1"]
[Date "2022.03.09"]
[WhiteClock "0:00:31"]
[BlackClock "0:00:19"]

1. d4 {[%clk 0:02:58]}  d5 {[%clk 0:02:59]} 2. Nf3 {[%clk 0:02:58]}  c6 {[%clk 0:02:59]} 3. e3 {[%clk 0:02:58]}  Nf6 {[%clk 0:02:59]} 4. Bd3 {[%clk 0:02:59]}  Bg4 {[%clk 0:02:57]} 5. Nbd2 {[%clk 0:02:59]}  e6 {[%clk 0:02:56]} 6. h3 {[%clk 0:02:59]}  Bh5 {[%clk 0:02:56]} 7. b3 {[%clk 0:02:57]}  Bd6 {[%clk 0:02:56]} 8. Bb2 {[%clk 0:02:58]}  Nbd7 {[%clk 0:02:56]} 9. O-O {[%clk 0:02:58]}  O-O {[%clk 0:02:54]} 10. g4 {[%clk 0:02:47]}  Bg6 {[%clk 0:02:53]} 11. Ne5 {[%clk 0:02:47]}  Bxd3 {[%clk 0:02:45]} 12. cxd3 {[%clk 0:02:48]}  c5 {[%clk 0:02:37]} 13. f4 {[%clk 0:02:47]}  cxd4 {[%clk 0:02:33]} 14. exd4 {[%clk 0:02:48]}  Ne8 {[%clk 0:02:16]} 15. Qe2 {[%clk 0:02:44]}  Rc8 {[%clk 0:02:08]} 16. Ndf3 {[%clk 0:02:27]}  f6 {[%clk 0:01:54]} 17. Nxd7 {[%clk 0:02:26]}  Qxd7 {[%clk 0:01:55]} 18. Nh4 {[%clk 0:02:10]}  Rc6 {[%clk 0:01:43]} 19. Rae1 {[%clk 0:02:06]}  Nc7 {[%clk 0:01:42]} 20. f5 {[%clk 0:02:03]}  Bg3 {[%clk 0:01:35]} 21. Ng2 {[%clk 0:01:44]}  Bxe1 {[%clk 0:01:34]} 22. Qxe1 {[%clk 0:01:40]}  Re8 {[%clk 0:01:27]} 23. Qg3 {[%clk 0:01:36]}  exf5 {[%clk 0:01:17]} 24. gxf5 {[%clk 0:01:37]}  Rc2 {[%clk 0:01:17]} 25. Ba3 {[%clk 0:01:34]}  Nb5 {[%clk 0:01:12]} 26. Bc5 {[%clk 0:01:27]}  b6 {[%clk 0:01:05]} 27. a4 {[%clk 0:01:27]}  Nc3 {[%clk 0:00:55]} 28. Nf4 {[%clk 0:01:16]}  bxc5 {[%clk 0:00:50]} 29. Kh1 {[%clk 0:01:05]}  Ne2 {[%clk 0:00:40]} 30. Qg4 {[%clk 0:00:50]}  Nxf4 {[%clk 0:00:38]} 31. Qxf4 {[%clk 0:00:51]}  Ree2 {[%clk 0:00:36]} 32. Rb1 {[%clk 0:00:45]}  Rh2+ {[%clk 0:00:33]} 33. Kg1 {[%clk 0:00:45]}  Rcg2+ {[%clk 0:00:31]} 34. Kf1 {[%clk 0:00:45]}  Rf2+ {[%clk 0:00:29]} 35. Qxf2 {[%clk 0:00:44]}  Rxf2+ {[%clk 0:00:30]} 36. Kxf2 {[%clk 0:00:45]}  Qxf5+ {[%clk 0:00:31]} 37. Ke2 {[%clk 0:00:45]}  cxd4 {[%clk 0:00:28]} 38. Rc1 {[%clk 0:00:33]}  Qe6+ {[%clk 0:00:26]} 39. Kd2 {[%clk 0:00:32]}  Qxh3 {[%clk 0:00:26]} 40. Kc2 {[%clk 0:00:33]}  Qc8+ {[%clk 0:00:25]} 41. Kb2 {[%clk 0:00:34]}  Qb7 {[%clk 0:00:23]} 42. Ka3 {[%clk 0:00:31]}  a5 {[%clk 0:00:22]} 43. Ka2 {[%clk 0:00:28]}  h5 {[%clk 0:00:21]} 44. Rc5 {[%clk 0:00:29]}  h4 {[%clk 0:00:20]} 45. Rb5 {[%clk 0:00:29]}  Qe7 {[%clk 0:00:19]} 46. Rxa5 {[%clk 0:00:28]}  h3 {[%clk 0:00:19]} 47. Ra8+ {[%clk 0:00:28]}  Kh7 {[%clk 0:00:19]} 48. a5 {[%clk 0:00:29]}  h2 {[%clk 0:00:19]} 49. a6 {[%clk 0:00:30]}  h1=Q {[%clk 0:00:18]} 50. Rc8 {[%clk 0:00:31]}  Qg2+ {[%clk 0:00:18]} 51. Rc2 {[%clk 0:00:31]}  Qxc2+ {[%clk 0:00:18]} 52. Ka1 {[%clk 0:00:31]}  Qe1# {[%clk 0:00:19]} 0-1


[Site "https://www.chess.com"]

[Event "Titled Tuesday Blitz March 08 Early 2022"]
[White "Muradov, Soltan"]
[Black "Maevsky, Nikolay"]
[WhiteFideId "14002108"]
[BlackFideId "4198220"]
[WhiteElo "1854"]
[BlackElo "2126"]
[Result "0-1"]
[Round "04"]
[TimeControl "180+1"]
[Date "2022.03.09"]
[WhiteClock "0:00:16"]
[BlackClock "0:01:40"]

1. e4 {[%clk 0:03:00]}  g6 {[%clk 0:02:59]} 2. Nf3 {[%clk 0:03:00]}  Bg7 {[%clk 0:03:00]} 3. d4 {[%clk 0:03:00]}  d6 {[%clk 0:03:00]} 4. Nc3 {[%clk 0:03:01]}  a6 {[%clk 0:03:00]} 5. Be3 {[%clk 0:03:01]}  b5 {[%clk 0:03:00]} 6. Bd3 {[%clk 0:02:59]}  Bb7 {[%clk 0:03:00]} 7. Qd2 {[%clk 0:02:59]}  Nd7 {[%clk 0:02:58]} 8. d5 {[%clk 0:02:37]}  c5 {[%clk 0:02:56]} 9. dxc6 {[%clk 0:02:37]}  Bxc6 {[%clk 0:02:56]} 10. a3 {[%clk 0:02:35]}  Bb7 {[%clk 0:02:54]} 11. O-O {[%clk 0:02:21]}  Rc8 {[%clk 0:02:54]} 12. Bd4 {[%clk 0:02:18]}  Ngf6 {[%clk 0:02:52]} 13. Rfe1 {[%clk 0:02:18]}  O-O {[%clk 0:02:52]} 14. Bf1 {[%clk 0:02:05]}  Re8 {[%clk 0:02:26]} 15. Rad1 {[%clk 0:02:04]}  Qc7 {[%clk 0:02:25]} 16. h3 {[%clk 0:01:33]}  Bc6 {[%clk 0:02:25]} 17. Qe3 {[%clk 0:01:28]}  e5 {[%clk 0:02:22]} 18. Qg5 {[%clk 0:00:24]}  h6 {[%clk 0:02:10]} 19. Qh4 {[%clk 0:00:22]}  exd4 {[%clk 0:02:10]} 20. Nxd4 {[%clk 0:00:22]}  Bb7 {[%clk 0:02:05]} 21. f3 {[%clk 0:00:21]}  Qb6 {[%clk 0:02:01]} 22. Kh1 {[%clk 0:00:21]}  Nh5 {[%clk 0:01:49]} 23. Nb3 {[%clk 0:00:17]}  Bf6 {[%clk 0:01:41]} 24. Qg4 {[%clk 0:00:16]}  Ne5 {[%clk 0:01:40]} 0-1


[Site "https://www.chess.com"]